fUSD/lending_fUSD_20241226
["ID","MTS","AMOUNT","RATE_DAILY","PERIOD"]
[346718931,1735237846151,-27095.38631353,0.00016799,2]
[346718932,1735237846214,-22787.37970422,0.00016799,2]
[346718933,1735237846229,-2213.15629143,0.00016799,2]
[346718934,1735237846242,-716.09482644,0.00016799,2]
[346718935,1735237846260,-6451.12455094,0.00016799,2]
[346718936,1735237846308,-441.64,0.00016799,2]
[346718937,1735237846319,-7404.41532893,0.00016799,2]
[346718938,1735237846331,-12381.1947916,0.00016799,2]
[346718941,1735237846364,-1288.18878332,0.00016799,2]
[346719153,1735239032736,-176.32,0.00010137,2]
[346719155,1735239032747,-450.0,0.00013,2]
[346719156,1735239032757,-255.49751647,0.0001355,2]
[346719158,1735239032767,-33.65839389,0.0001389,2]
[346719166,1735239032849,-699.93603081,0.0001389,2]
[346719308,1735239038999,-65.3855753,0.0001389,2]
[346719309,1735239039009,-500.0,0.00015,2]
[346719310,1735239039021,-1000.0,0.0001571,2]
[346719311,1735239039030,-481.77,0.00015796,2]
[346719312,1735239039040,-400.0,0.00015964,2]
[346719313,1735239039049,-500.0,0.00015964,2]
[346719314,1735239039059,-269.09,0.00016018,2]
[346719315,1735239039068,-400.0,0.00016018,2]
[346719316,1735239039077,-250.0,0.00016054,2]
[346719317,1735239039088,-193.23,0.00016055,2]
[346719318,1735239039097,-798.98,0.00016154,2]
[346719319,1735239039107,-270.1625177,0.00016571,2]
[346719320,1735239039117,-14152.956357,0.0001664,2]
[346719321,1735239039128,-439.8092367,0.0001664,2]
[346719322,1735239039139,-152.41,0.00016658,30]
[346719323,1735239039148,-500.0,0.00016665,2]
[346719324,1735239039159,-2108.956,0.00016699,2]
[346719325,1735239039169,-168.738,0.00016699,2]
[346719326,1735239039179,-3515.61240964,0.00016699,2]
[346719327,1735239039192,-948.97169036,0.00016699,2]
[346719328,1735239039203,-404.7227,0.00016699,2]
[346719329,1735239039216,-10509.4075,0.000167,2]
[346719330,1735239039227,-2500.0,0.000167,2]
[346719331,1735239039236,-1283.81707634,0.000167,2]
[346719332,1735239039251,-1318.91692366,0.000167,2]
[346719333,1735239039260,-3690.02127166,0.000167,2]
[346719341,1735239040679,-333.86999999,0.000167,2]
[346719964,1735240232582,-150.89083964,0.0001,2]
[346719965,1735240232592,-154.67,0.00010137,2]
[346719966,1735240232602,-149.50916036,0.00010137,2]
[346719967,1735240232702,-2.96083964,0.00010137,2]
[346719968,1735240232713,-326.03416036,0.00012027,2]
[346719969,1735240232724,-290.96583964,0.00012027,2]
[346719970,1735240232734,-450.0,0.00013,2]
[346719971,1735240232744,-757.62,0.00013851,2]
[346719972,1735240232754,-500.0,0.00015,2]
[346719973,1735240232763,-150.0,0.0001509,2]
[346719974,1735240232774,-400.0,0.00015541,2]
[346719975,1735240232784,-250.0,0.00015565,2]
[346719976,1735240232794,-1000.0,0.00015636,2]
[346719977,1735240232803,-409.86,0.00015743,2]
[346719978,1735240232813,-580.246,0.0001596,2]
[346719980,1735240232822,-500.0,0.00015964,2]
[346719982,1735240232831,-269.08,0.00015981,2]
[346719984,1735240232841,-757.62,0.00016115,2]
[346719986,1735240232850,-2500.0,0.00016588,2]
[346719988,1735240232859,-2219.13438726,0.00016591,2]
[346719989,1735240232869,-2219.13438723,0.00016603,2]
[346719990,1735240232878,-2219.13438723,0.00016615,2]
[346719991,1735240232887,-2219.13438723,0.00016627,2]
[346719992,1735240232897,-2219.13438723,0.00016639,2]
[346719993,1735240232906,-2219.13438723,0.00016652,2]
[346719994,1735240232916,-152.41,0.00016658,30]
[346719995,1735240232926,-2219.13438723,0.00016664,2]
[346719996,1735240232935,-500.0,0.00016665,2]
[346719997,1735240232945,-2219.13438723,0.00016676,2]
[346719998,1735240232955,-2457.56657441,0.0001668,2]
[346719999,1735240232970,-1006.1552966,0.0001668,2]
[346720000,1735240232981,-3207.60845901,0.0001668,2]
[346720002,1735240232991,-206.20860154,0.0001668,2]
[346720005,1735240233001,-5789.43933944,0.00016682,2]
[346720006,1735240233051,-881.89099057,0.00016682,2]
[346720007,1735240233061,-2140.16250632,0.00016684,2]
[346720008,1735240233074,-4531.16782369,0.00016684,2]
[346720009,1735240233083,-10620.05922241,0.00016686,2]
[346720010,1735240233135,-1211.0,0.00016686,2]
[346720011,1735240233149,-4949.88771482,0.00016686,2]
[346720012,1735240233159,-835215.08824258,0.00016686,2]
[346720013,1735240233171,-7704.2232308,0.00016686,2]
[346720015,1735240238433,-889160.03102883,0.00016686,2]
[346720016,1735240238444,-1322.5644091,0.00016686,2]
[346720017,1735240238459,-266.06591,0.00016686,2]
[346720018,1735240238470,-1479.662167,0.00016686,2]
[346720019,1735240238482,-2198.98756785,0.00016686,2]
[346720020,1735240238536,-48509.70000005,0.00016686,2]
[346720021,1735240238547,-11577.70813081,0.00016686,2]
[346720022,1735240238558,-998.02204395,0.00016686,2]
[346720023,1735240238623,-806.20922704,0.00016686,2]
[346720024,1735240238634,-2190.0,0.00016686,2]
[346720167,1735240240486,-442568.18277766,0.00016686,2]
[346720168,1735240240496,-6671.33033001,0.00016687,2]
[346720169,1735240240506,-2219.13438723,0.00016688,2]
[346720170,1735240240516,-6671.33033001,0.00016689,2]
[346720171,1735240240525,-6671.33033001,0.00016691,2]
[346720172,1735240240534,-6671.33033001,0.00016693,2]
[346720173,1735240240544,-6671.33033001,0.00016696,2]
[346720174,1735240240554,-6671.33033001,0.00016698,2]
[346720175,1735240240563,-399.5724,0.00016699,2]
[346720176,1735240240573,-793.6056,0.000167,2]
[346720177,1735240240582,-14324.8723,0.000167,2]
[346720178,1735240240591,-327.32874984,0.000167,2]
[346720179,1735240240600,-1837.181,0.000167,2]
[346720180,1735240240609,-3000.0,0.000167,2]
[346720181,1735240240618,-6671.33033001,0.000167,2]
[346720182,1735240240627,-170.11631009,0.000167,2]
[346720183,1735240240637,-226.86404716,0.000167,2]
[346720184,1735240240646,-2219.13438723,0.000167,2]
[346720185,1735240240655,-197.9681731,0.000167,2]
[346720186,1735240240664,-1000.0,0.0001672,2]
[346720187,1735240240673,-612.0,0.00016765,2]
[346720188,1735240240682,-600.0,0.0001677,2]
[346720189,1735240240692,-581.43,0.0001677,2]
[346720190,1735240240702,-1000.0,0.0001677,2]
[346720191,1735240240712,-540.64748608,0.00016779,2]
[346720192,1735240240722,-468.01953595,0.00016779,2]
[346720193,1735240240731,-887945.86212792,0.0001678,2]
[346720194,1735240240740,-37828.11110788,0.00016799,2]
[346720195,1735240240750,-1000.0,0.000168,8]
[346720196,1735240240759,-2305238.15217772,0.000168,2]
[346720197,1735240240769,-14544.1490895,0.000168,2]
[346720198,1735240240778,-151.0,0.000168,2]
[346720199,1735240240788,-151.0,0.000168,2]
[346720201,1735240240798,-151.614301,0.000168,2]
[346720203,1735240240807,-151.0,0.000168,2]
[346720205,1735240240816,-151.60255,0.000168,2]
[346720207,1735240240826,-151.0,0.000168,2]
[346720221,1735240240969,-151.0,0.000168,2]
[346720222,1735240241019,-536.4719744,0.00016802,2]
[346720223,1735240241030,-307.835059,0.00016802,2]
[346720224,1735240241039,-2428.0075306,0.00016802,2]
[346720225,1735240241049,-176.32,0.00016813,2]
[346720226,1735240241058,-20170.47479461,0.00017,2]
[346720227,1735240241070,-5165.84602746,0.00017,2]
[346720228,1735240241081,-10153.0,0.00017,2]
[346720229,1735240241093,-7025.61758418,0.00017,2]
[346720230,1735240241108,-5755.96575606,0.00017,2]
[346720231,1735240241385,-281.0,0.00017,2]
[346720232,1735240241397,-464.605,0.00017,2]
[346720249,1735240243576,-500.0,0.00017,2]
[346720250,1735240243588,-477.24801,0.00017,2]
[346720251,1735240243599,-482.15821,0.00017,2]
[346720252,1735240243611,-558.900001,0.00017,2]
[346720272,1735240246430,-151.0,0.000168,2]
[346720273,1735240246440,-1141.89280609,0.00017,2]
[346720274,1735240246452,-85359.39383005,0.00017,2]
[346720275,1735240246485,-1997.128113,0.00017,2]
[346720276,1735240246737,-3469.75000198,0.00017,2]
[346720357,1735241431609,-151.08301722,0.0001,2]
[346720358,1735241431619,-426.89424586,0.00010037,2]
[346720359,1735241431629,-175.12,0.00010137,2]
[346720360,1735241431639,-2608.970017,0.00012549,2]
[346720361,1735241431648,-300.0,0.00012613,2]
[346720362,1735241431658,-20090.0,0.00012614,2]
[346720363,1735241431668,-500.0,0.00012973,2]
[346720364,1735241431677,-447080.53977154,0.00013,2]
[346720365,1735241431725,-593.999997,0.00013,2]
[346720366,1735241431736,-3112.21826223,0.00013,2]
[346720367,1735241431748,-3334.91532517,0.00013,2]
[346720368,1735241431759,-705.7996043,0.00013,2]
[346720369,1735241431787,-36757.39738509,0.00013,2]
[346720370,1735241431851,-1900.0,0.00013,2]
[346720371,1735241431863,-255.97559429,0.00013,2]
[346720372,1735241431875,-616.5,0.00013,2]
[346720373,1735241431921,-400.78,0.00013,2]
[346720374,1735241431957,-656.77032132,0.00013,2]
[346720375,1735241431970,-821.24910659,0.00013,2]
[346720376,1735241431998,-4279.62851471,0.00013,2]
[346720392,1735241437568,-426.89424585,0.00011275,2]
[346720393,1735241437578,-125.70015087,0.00013,2]
[346720394,1735241437673,-10051.6969912,0.00013,2]
[346720395,1735241437685,-252.90102083,0.00013,2]
[346720397,1735241437949,-1304.0305234,0.00013,2]
[346720402,1735241437994,-303.64,0.00013,2]
[346720585,1735241439816,-426.89424585,0.00012513,2]
[346720586,1735241439826,-2242350.16298991,0.00013,2]
[346720587,1735241439837,-2143.35793935,0.00013,2]
[346720588,1735241439848,-4939.77375769,0.00013,2]
[346720590,1735241439860,-1736.2500075,0.00013,2]
[346720592,1735241439871,-3800.0,0.00013,2]
[346720595,1735241439882,-41274.47611913,0.00013,2]
[346720622,1735241440143,-33306.3600903,0.00013,2]
[346720625,1735241440154,-9439.61,0.00013,2]
[346720630,1735241440297,-7855.35575124,0.00013,2]
[346720664,1735241443437,-4843.8,0.00013,2]
[346720665,1735241443483,-265.371,0.00013,2]
[346720666,1735241443497,-472.82833386,0.00013,2]
[346720667,1735241443525,-2100.07607444,0.00013,2]
[346720668,1735241445728,-500.0,0.00013,2]
[346720669,1735241445739,-1269.26404567,0.00013,2]
[346720670,1735241445750,-137754.71922557,0.00013,2]
[346720671,1735241445761,-250.63789628,0.00013,2]
[346720672,1735241445805,-65426.83354882,0.00013,2]
[346720673,1735241445933,-9706.4,0.00013,2]
[346720703,1735241446302,-76454.20718732,0.00013,2]
[346721530,1735242631937,-727.37,9.088e-05,2]
[346721531,1735242631948,-153.16,0.00010137,2]
[346721532,1735242631958,-1214.17,0.00010958,2]
[346721533,1735242631969,-38.25,0.00010958,2]
[346721534,1735242631979,-166.03,0.00010969,2]
[346721535,1735242631989,-250.0,0.00010969,2]
[346721536,1735242631998,-1000.0,0.00010969,2]
[346721537,1735242632008,-1741.87,0.00011048,2]
[346721538,1735242632017,-151.0,0.00011063,2]
[346721539,1735242632027,-300.0,0.00011069,2]
[346721540,1735242632036,-301.32980032,0.0001107,2]
[346721541,1735242632047,-486.87103,0.0001107,2]
[346721549,1735242632321,-23111.79916968,0.0001107,2]
[346721551,1735242632330,-10883.06,0.00011121,2]
[346721553,1735242632339,-400.0,0.00011124,2]
[346721555,1735242632349,-33.97588633,0.00011137,2]
[346721557,1735242632360,-443.53384253,0.00011137,2]
[346721561,1735242632371,-7801.95027114,0.00011137,2]
[346721564,1735242632380,-200.0,0.00011138,2]
[346721566,1735242632389,-521.67,0.00011146,2]
[346721568,1735242632399,-200.0,0.00011225,2]
[346721570,1735242632409,-150.0,0.00011233,2]
[346721573,1735242632418,-618.83,0.00011267,2]
[346721576,1735242632427,-727.37,0.00011352,2]
[346721579,1735242632436,-796.53,0.00011365,2]
[346721582,1735242632446,-250.0,0.00011413,2]
[346721585,1735242632456,-156.39,0.00011507,2]
[346721588,1735242632465,-5966.9,0.00011578,2]
[346721591,1735242632475,-159.23,0.00011859,2]
[346721593,1735242632484,-159.23,0.00011864,2]
[346721596,1735242632493,-159.23,0.00011868,2]
[346721600,1735242632502,-159.23,0.00011872,2]
[346721602,1735242632512,-159.23,0.00011876,2]
[346721606,1735242632521,-159.23,0.00011881,2]
[346721608,1735242632531,-159.23,0.00011885,2]
[346721611,1735242632540,-159.23,0.00011889,2]
[346721614,1735242632550,-159.23,0.00011893,2]
[346721617,1735242632559,-159.23,0.00011898,2]
[346721620,1735242632568,-159.23,0.00011902,2]
[346721623,1735242632577,-159.23,0.00011906,2]
[346721626,1735242632586,-159.23,0.0001191,2]
[346721629,1735242632595,-159.23,0.00011915,2]
[346721631,1735242632604,-159.23,0.00011919,2]
[346721633,1735242632615,-1500.0,0.00011992,2]
[346721635,1735242632624,-250.0,0.00012076,2]
[346721637,1735242632634,-3916.85,0.00012329,2]
[346721639,1735242632644,-1000.0,0.0001234,2]
[346721641,1735242632653,-486.04887033,0.000124,2]
[346721643,1735242632662,-206.20860154,0.000124,2]
[346721645,1735242632672,-750.98881772,0.000124,2]
[346721647,1735242632681,-221.35187129,0.000124,2]
[346721649,1735242632692,-486.04887032,0.000124,2]
[346721651,1735242632702,-486.04887032,0.00012401,2]
[346721653,1735242632711,-486.04887032,0.00012401,2]
[346721655,1735242632720,-486.04887032,0.00012402,2]
[346721657,1735242632730,-486.04887032,0.00012402,2]
[346721659,1735242632739,-486.04887032,0.00012403,2]
[346721661,1735242632749,-486.04887032,0.00012403,2]
[346721663,1735242632758,-486.04887032,0.00012404,2]
[346721665,1735242632767,-486.04887032,0.00012404,2]
[346721667,1735242632777,-151.2426981,0.00012404,2]
[346721669,1735242632787,-245.49656238,0.00012404,2]
[346721671,1735242632796,-893.43,0.00012441,2]
[346721673,1735242632805,-500.0,0.00012473,2]
[346721675,1735242632815,-9326.86200018,0.0001248,2]
[346721683,1735242632879,-16465.60039415,0.0001248,2]
[346721685,1735242632889,-13006.51805188,0.000125,2]
[346721687,1735242632898,-536850.08676439,0.000125,2]
[346721689,1735242632909,-314.32895251,0.000125,2]
[346721691,1735242632920,-1561.440015,0.000125,2]
[346721693,1735242632931,-32693.05154575,0.000125,2]
[346721696,1735242632943,-4965.29590774,0.000125,2]
[346721705,1735242633023,-110444.88997558,0.000125,2]
[346721707,1735242633036,-1470.9993,0.000125,2]
[346721780,1735242637736,-809.98594867,0.000125,2]
[346721781,1735242637825,-686.03253807,0.000125,2]
[346721782,1735242637837,-200806.69024681,0.000125,2]
[346721783,1735242638107,-4975.51485734,0.000125,2]
[346721784,1735242638129,-2715.84665235,0.000125,2]
[346721785,1735242638141,-665.17985081,0.000125,2]
[346721786,1735242638187,-2810.81315183,0.000125,2]
[346721787,1735242638200,-911.25,0.000125,2]
[346721788,1735242638248,-2238.99168339,0.000125,2]
[346721789,1735242638263,-1827.4623212,0.000125,2]
[346721790,1735242638276,-155948.86918005,0.000125,2]
[346721791,1735242638300,-274.176,0.000125,2]
[346721841,1735242640134,-1914.79687129,0.000125,2]
[346721842,1735242640146,-264.783,0.000125,2]
[346721843,1735242640174,-11433.36508019,0.000125,2]
[346721844,1735242640247,-260983.00555835,0.000125,2]
[346721845,1735242640262,-350.79000003,0.000125,2]
[346721846,1735242640273,-26786.45,0.000125,2]
[346722046,1735242643057,-3189.506688,0.000125,2]
[346722047,1735242643103,-3516.21022,0.000125,2]
[346722048,1735242643160,-3001.865,0.000125,2]
[346722058,1735242645966,-394.72,0.000125,2]
[346722059,1735242645978,-15727.32130979,0.000125,2]
[346722060,1735242646403,-225155.98474399,0.000125,2]
[346722061,1735242646413,-501225.98032251,0.000125,2]
[346722062,1735242646425,-767.342793,0.000125,2]
[346722063,1735242646438,-376.75212113,0.000125,2]
[346722064,1735242646455,-49494.82766781,0.000125,2]
[346722118,1735243831968,-749.91,9.329e-05,2]
[346722119,1735243831980,-154.31,0.00010137,2]
[346722120,1735243831991,-400.0,0.00011272,2]
[346722121,1735243832001,-250.0,0.00011299,2]
[346722122,1735243832012,-1500.0,0.00011345,2]
[346722123,1735243832022,-2000.0,0.00011352,2]
[346722124,1735243832033,-250.0,0.00011377,2]
[346722125,1735243832042,-1000.0,0.00011413,2]
[346722126,1735243832053,-1671.21,0.00011431,2]
[346722127,1735243832063,-1563.59598812,0.00011465,2]
[346722128,1735243832076,-4182.8734061,0.00011465,2]
[346722129,1735243832115,-18153.53060578,0.00011465,2]
[346722130,1735243832125,-250.0,0.00011465,2]
[346722131,1735243832135,-924.1,0.0001147,2]
[346722132,1735243832145,-1709.88,0.00011475,2]
[346722133,1735243832155,-200.0,0.00011483,2]
[346722134,1735243832164,-96583.55,0.00011494,2]
[346722135,1735243832174,-529.34,0.00011506,2]
[346722136,1735243832184,-196.09,0.00011507,2]
[346722137,1735243832194,-749.91,0.00011593,2]
[346722138,1735243832205,-2000.0,0.00012,2]
[346722139,1735243832215,-29547.0,0.00012007,2]
[346722140,1735243832225,-237.23470834,0.00012399,2]
[346722141,1735243832234,-1930.90006792,0.00012399,2]
[346722142,1735243832244,-1930.9000679,0.00012399,2]
[346722143,1735243832254,-1930.9000679,0.00012399,2]
[346722144,1735243832263,-1930.9000679,0.00012399,2]
[346722145,1735243832273,-1930.9000679,0.00012399,2]
[346722146,1735243832283,-1930.9000679,0.00012399,2]
[346722147,1735243832293,-1930.9000679,0.00012399,2]
[346722148,1735243832491,-1930.9000679,0.00012399,2]
[346722149,1735243832518,-1930.9000679,0.00012399,2]
[346722150,1735243832528,-184.1224218,0.000124,2]
[346722151,1735243832538,-1930.9000679,0.000124,2]
[346722152,1735243832548,-151.24269809,0.000124,2]
[346722153,1735243832558,-318.43555457,0.00012438,2]
[346722154,1735243832569,-958.64,0.00012439,2]
[346722155,1735243832579,-958.64,0.00012442,2]
[346722156,1735243832589,-958.64,0.00012445,2]
[346722157,1735243832600,-958.64,0.00012449,2]
[346722158,1735243832610,-958.64,0.00012452,2]
[346722159,1735243832620,-958.64,0.00012455,2]
[346722160,1735243832634,-958.64,0.00012458,2]
[346722161,1735243832646,-958.64,0.00012462,2]
[346722162,1735243832656,-958.64,0.00012465,2]
[346722163,1735243832666,-160.0,0.00012466,2]
[346722164,1735243832678,-958.64,0.00012468,2]
[346722165,1735243832688,-958.64,0.00012471,2]
[346722166,1735243832698,-359.02289266,0.00012473,2]
[346722167,1735243832709,-958.64,0.00012475,2]
[346722168,1735243832720,-958.64,0.00012478,2]
[346722169,1735243832730,-958.64,0.00012481,2]
[346722170,1735243832740,-958.64,0.00012484,2]
[346722171,1735243832749,-200.0,0.00012487,2]
[346722172,1735243832759,-958.64,0.00012488,2]
[346722173,1735243832769,-136435.73245506,0.0001249,2]
[346722174,1735243832801,-31121.9990436,0.0001249,2]
[346722175,1735243832813,-734.90755086,0.0001249,2]
[346722176,1735243832825,-378.39155365,0.0001249,2]
[346722177,1735243832859,-9451.38878338,0.0001249,2]
[346722178,1735243832868,-958.64,0.00012491,2]
[346722179,1735243832877,-958.64,0.00012494,2]
[346722180,1735243832887,-958.64,0.00012497,2]
[346722181,1735243832897,-7272.59978982,0.000125,2]
[346722182,1735243832906,-77540.93221365,0.000125,2]
[346722183,1735243832944,-3096.74511675,0.000125,2]
[346722188,1735243838120,-8879.7612,0.000125,2]
[346722189,1735243838132,-18651.8728496,0.000125,2]
[346722190,1735243838211,-64953.7637,0.000125,2]
[346722191,1735243838226,-25023.90649331,0.000125,2]
[346722192,1735243838272,-1012.13738047,0.000125,2]
[346722193,1735243838284,-1918.13875,0.000125,2]
[346722194,1735243838330,-268.12099998,0.000125,2]
[346722195,1735243838364,-1267.146473,0.000125,2]
[346722197,1735243838375,-5010.7302,0.000125,2]
[346722199,1735243838386,-1203.91728877,0.000125,2]
[346722217,1735243840069,-151.21384592,0.00012438,2]
[346722218,1735243840078,-25252.13711798,0.000125,2]
[346722219,1735243840090,-493.21434,0.000125,2]
[346722220,1735243840124,-959.85,0.000125,2]
[346722221,1735243840136,-501.36,0.000125,2]
[346722222,1735243840147,-2429.4141106,0.000125,2]
[346722223,1735243840184,-37531.26027224,0.000125,2]
[346722224,1735243840307,-1127.82727252,0.000125,2]
[346722225,1735243840321,-1960.52,0.000125,2]
[346722226,1735243840361,-735.34167935,0.000125,2]
[346722227,1735243840372,-821.3856335,0.000125,2]
[346722228,1735243840383,-24104.6103854,0.000125,2]
[346722229,1735243840394,-16726.73742979,0.000125,2]
[346722230,1735243840405,-20422.04033099,0.000125,2]
[346722231,1735243840417,-45701.17881992,0.000125,2]
[346722237,1735243842932,-981.28,0.000125,2]
[346722238,1735243842945,-2547.91315279,0.000125,2]
[346722239,1735243843260,-489.29187735,0.000125,2]
[346722242,1735243843271,-957.61989548,0.000125,2]
[346722243,1735243843283,-701.666667,0.000125,2]
[346722244,1735243843295,-792.83061176,0.000125,2]
[346722245,1735243843323,-3238.98181317,0.000125,2]
[346722246,1735243843335,-1006.62630079,0.000125,2]
[346722247,1735243843346,-352.72799642,0.000125,2]
[346722248,1735243843357,-26984.5997021,0.000125,2]
[346722251,1735243843406,-62022.914136,0.000125,2]
[346722252,1735243843417,-2914.44,0.000125,2]
[346722255,1735243846116,-259.91533532,0.000125,2]
[346722256,1735243846127,-394.72,0.000125,2]
[346722257,1735243846138,-853.05,0.000125,2]
[346722258,1735243846150,-704.82880413,0.000125,2]
[346722259,1735243846161,-1216.1,0.000125,2]
[346722260,1735243846233,-4806.6977999,0.000125,2]
[346722261,1735243846247,-10927.40057417,0.000125,2]
[346722262,1735243846295,-1973.17459424,0.000125,2]
[346722263,1735243846306,-1051.05134972,0.000125,2]
[346722271,1735243846369,-375670.0,0.000125,2]
[346722273,1735243846380,-76661.48896786,0.000125,2]
[346722275,1735243846389,-190434.13480048,0.000125,2]
[346722277,1735243846401,-284351.37357835,0.000125,2]
[346723029,1735244914044,-173.91,0.00010137,2]
[346723030,1735244914067,-203.16,0.00010301,2]
[346723031,1735244914094,-594.77,0.00010858,2]
[346723032,1735244914564,156.16,0.0001029,2]
[346723073,1735245032153,-376.83,0.0001029,2]
[346723074,1735245032163,-190.97900704,0.00010766,2]
[346723075,1735245032173,-594.77,0.0001086,2]
[346723076,1735245032183,-594.77,0.00010863,2]
[346723077,1735245032192,-594.77,0.00010866,2]
[346723078,1735245032203,-594.77,0.00010869,2]
[346723079,1735245032213,-594.77,0.00010872,2]
[346723080,1735245032223,-594.77,0.00010875,2]
[346723081,1735245032233,-594.77,0.00010877,2]
[346723082,1735245032243,-594.77,0.0001088,2]
[346723083,1735245032253,-594.77,0.00010883,2]
[346723084,1735245032262,-594.77,0.00010886,2]
[346723085,1735245032272,-594.77,0.00010889,2]
[346723086,1735245032282,-594.77,0.00010892,2]
[346723087,1735245032291,-594.77,0.00010895,2]
[346723088,1735245032302,-594.77,0.00010897,2]
[346723089,1735245032311,-594.77,0.000109,2]
[346723090,1735245032321,-594.77,0.00010903,2]
[346723091,1735245032330,-594.77,0.00010906,2]
[346723092,1735245032340,-594.77,0.00010909,2]
[346723093,1735245032350,-594.77,0.00010912,2]
[346723094,1735245032360,-250.0,0.00010927,2]
[346723095,1735245032370,-12762.86,0.00010959,2]
[346723096,1735245032379,-200.0,0.00010982,2]
[346723097,1735245032390,-1280.5,0.00011048,2]
[346723098,1735245032399,-166.08,0.00011095,2]
[346723099,1735245032409,-1846.43,0.00011123,2]
[346723100,1735245032419,-250.0,0.0001114,2]
[346723101,1735245032428,-400.0,0.00011267,2]
[346723102,1735245032438,-2000.0,0.00011384,2]
[346723103,1735245032447,-250.0,0.00011413,2]
[346723104,1735245032457,-310.24,0.00011447,2]
[346723105,1735245032467,-681.76,0.00011464,2]
[346723106,1735245032477,-190.97900703,0.00011488,2]
[346723107,1735245032487,-4176.702175,0.00011587,2]
[346723108,1735245032502,-16760.57921289,0.00011587,2]
[346723109,1735245032513,-2962.71861211,0.00011587,2]
[346723110,1735245032523,-191.863,0.00011588,2]
[346723112,1735245032532,-2373.59528882,0.00011588,2]
[346723114,1735245032544,-288.06471118,0.00011588,2]
[346723116,1735245032553,-2751.0,0.00011588,2]
[346723118,1735245032563,-77.20697812,0.00011602,2]
[346723119,1735245032684,-1542.66231353,0.00011602,2]
[346723120,1735245032696,-1538.17111806,0.00011602,2]
[346723121,1735245032707,-1164.78959029,0.00011602,2]
[346723122,1735245032716,-200.0,0.00011615,2]
[346723123,1735245032725,-826.28,0.00011636,2]
[346723124,1735245032735,-636.03613801,0.00011695,2]
[346723125,1735245032750,-1048.2243975,0.00011695,2]
[346723126,1735245032761,-6948.94200004,0.00011695,2]
[346723127,1735245032773,-12271.64867051,0.00011695,2]
[346723128,1735245032783,-12899.28047235,0.00011695,2]
[346723129,1735245032795,-1061.6618656,0.00011695,2]
[346723130,1735245033071,-18749.18645599,0.00011695,2]
[346723131,1735245033082,-164.83,0.00011848,2]
[346723132,1735245033093,-649.0,0.00012055,2]
[346723133,1735245033104,-1742.04717301,0.00012087,2]
[346723157,1735245038730,-292.09648623,0.00012087,2]
[346723158,1735245038764,-1690.6107,0.00012087,2]
[346723163,1735245038919,-862.24427429,0.00012087,2]
[346723164,1735245038931,-500.0,0.00012087,2]
[346723165,1735245039059,-1954.01,0.00012087,2]
[346723166,1735245039071,-8112.36324415,0.00012087,2]
[346723167,1735245039082,-5099.0285075,0.00012087,2]
[346723173,1735245040142,-608.83961482,0.00012087,2]
[346723174,1735245040152,-1510.09,0.00012087,2]
[346723175,1735245040161,-9999.99,0.00012087,2]
[346723176,1735245040170,-3473.29,0.00012087,2]
[346723177,1735245040180,-299.99,0.00012087,2]
[346723178,1735245040189,-9999.99,0.00012087,2]
[346723179,1735245040198,-873.86038518,0.00012087,2]
[346723180,1735245040231,-740.99905203,0.00012087,2]
[346723181,1735245040296,-8385.13056279,0.00012087,2]
[346723182,1735245040305,-1377.05,0.00012087,2]
[346723183,1735245040315,-999.99,0.00012087,2]
[346723184,1735245040324,-150.99,0.00012087,2]
[346723185,1735245040334,-16575.57274573,0.00012087,2]
[346723186,1735245040346,-1644.3998225,0.00012087,2]
[346723187,1735245040359,-1428.50840388,0.00012087,2]
[346723188,1735245040370,-1582.52646743,0.00012087,2]